fUSD/lending_fUSD_20240331
["ID","MTS","AMOUNT","RATE_DAILY","PERIOD"]
[321169462,1711926642328,-500.0,0.00057534,120]
[321169463,1711926642337,-629.5,0.00057534,120]
[321169464,1711926642346,-500.0,0.00057534,120]
[321169465,1711926642355,-974.24,0.00057534,120]
[321169466,1711926642364,-500.0,0.00057534,120]
[321169467,1711926642373,-500.0,0.00057534,120]
[321169468,1711926642382,-1687.4,0.00057534,120]
[321169469,1711926642391,-648.95,0.00057534,120]
[321169470,1711926642400,-547.85375955,0.00057534,120]
[321169471,1711926642409,-234.61,0.00057534,120]
[321169472,1711926642418,-686.4,0.00057534,120]
[321169473,1711926642427,-1104.01,0.00057534,120]
[321169474,1711926642436,-1419.24,0.00057534,120]
[321169475,1711926642446,-739.87,0.00057534,120]
[321169476,1711926642455,-943.24,0.00057534,120]
[321169477,1711926642464,-500.0,0.00057534,21]
[321169478,1711926642473,-620.10932793,0.00057534,120]
[321169479,1711926642482,-500.0,0.00057534,120]
[321169480,1711926642491,-823.48,0.00057534,120]
[321169481,1711926642500,-528.34,0.00057534,120]
[321169482,1711926642510,-732.72,0.00057534,120]
[321169483,1711926642519,-1863.01,0.00057534,120]
[321169484,1711926642529,-500.0,0.00057534,120]
[321169485,1711926642538,-500.0,0.00057534,120]
[321169486,1711926642548,-500.0,0.00057534,120]
[321169487,1711926642557,-500.0,0.00057534,120]
[321169488,1711926642567,-992.98,0.00057534,120]
[321169489,1711926642576,-500.0,0.00057534,120]
[321169490,1711926642586,-159.75132017,0.00057708,2]
[321169491,1711926642595,-692.8,0.00057799,120]
[321169492,1711926642604,-500.0,0.00057808,120]
[321169493,1711926642615,-708.54,0.00057808,120]
[321169494,1711926642624,-608.72,0.00057808,120]
[321169495,1711926642635,-500.0,0.00057808,120]
[321169496,1711926642644,-500.0,0.00057808,120]
[321169497,1711926642653,-656.41,0.00057808,120]
[321169498,1711926642662,-500.0,0.00057808,120]
[321169499,1711926642672,-629.5,0.00057808,120]
[321169500,1711926642680,-500.0,0.00057808,120]
[321169501,1711926642689,-974.24,0.00057808,120]
[321169502,1711926642698,-390.67245452,0.00057808,120]
[321169503,1711926642709,-109.32754548,0.00057808,120]
[321169504,1711926642718,-500.0,0.00057808,120]
[321169505,1711926642727,-1687.4,0.00057808,120]
[321169506,1711926642735,-648.95,0.00057808,120]
[321169507,1711926642744,-686.4,0.00057808,120]
[321169508,1711926642753,-1104.01,0.00057808,120]
[321169509,1711926642763,-1419.24,0.00057808,120]
[321169510,1711926642772,-739.87,0.00057808,120]
[321169511,1711926642781,-943.24,0.00057808,120]
[321169512,1711926642790,-500.0,0.00057808,21]
[321169513,1711926642799,-500.0,0.00057808,120]
[321169514,1711926642809,-823.48,0.00057808,120]
[321169515,1711926642817,-528.34,0.00057808,120]
[321169516,1711926642826,-732.72,0.00057808,120]
[321169517,1711926642835,-1863.01,0.00057808,120]
[321169518,1711926642845,-500.0,0.00057808,120]
[321169519,1711926642854,-500.0,0.00057808,120]
[321169520,1711926642863,-500.0,0.00057808,120]
[321169521,1711926642873,-500.0,0.00057808,120]
[321169522,1711926642882,-992.98,0.00057808,120]
[321169523,1711926642892,-500.0,0.00057808,120]
[321169524,1711926642901,-164.79452485,0.00057982,36]
[321169525,1711926642910,-1000.32922015,0.00058,120]
[321169526,1711926642919,-838.06132381,0.00058082,2]
[321169527,1711926642927,-500.0,0.00058082,120]
[321169528,1711926642936,-708.54,0.00058082,120]
[321169529,1711926642944,-608.72,0.00058082,120]
[321169530,1711926642953,-500.0,0.00058082,120]
[321169531,1711926642962,-500.0,0.00058082,120]
[321169532,1711926642972,-656.41,0.00058082,120]
[321169533,1711926642982,-500.0,0.00058082,120]
[321169534,1711926642991,-629.5,0.00058082,120]
[321169535,1711926643000,-500.0,0.00058082,120]
[321169536,1711926643009,-974.24,0.00058082,120]
[321169537,1711926643019,-500.0,0.00058082,120]
[321169538,1711926643028,-500.0,0.00058082,120]
[321169539,1711926643037,-1687.4,0.00058082,120]
[321169540,1711926643046,-648.95,0.00058082,120]
[321169541,1711926643056,-686.4,0.00058082,120]
[321169542,1711926643065,-1104.01,0.00058082,120]
[321169543,1711926643074,-1419.24,0.00058082,120]
[321169544,1711926643084,-739.87,0.00058082,120]
[321169545,1711926643093,-943.24,0.00058082,120]
[321169546,1711926643103,-500.0,0.00058082,21]
[321169547,1711926643112,-279.45204126,0.00058082,120]
[321169548,1711926643121,-823.48,0.00058082,120]
[321169549,1711926643129,-528.34,0.00058082,120]
[321169550,1711926643139,-732.72,0.00058082,120]
[321169551,1711926643149,-1863.01,0.00058082,120]
[321169552,1711926643158,-500.0,0.00058082,120]
[321169554,1711926643168,-500.0,0.00058082,120]
[321169555,1711926643178,-500.0,0.00058082,120]
[321169556,1711926643189,-500.0,0.00058082,120]
[321169557,1711926643198,-992.98,0.00058082,120]
[321169558,1711926643207,-500.0,0.00058082,120]
[321169559,1711926643216,-384.5,0.0005827,120]
[321169560,1711926643225,-800.0,0.00058305,120]
[321169561,1711926643234,-212.697221,0.00058305,120]
[321169562,1711926643243,-200.0,0.00058305,120]
[321169563,1711926643253,-2042.0,0.00058341,117]
[321169564,1711926643261,-500.0,0.00058356,120]
[321169565,1711926643270,-708.54,0.00058356,120]
[321169566,1711926643279,-608.72,0.00058356,120]
[321169567,1711926643288,-500.0,0.00058356,120]
[321169568,1711926643297,-500.0,0.00058356,120]
[321169569,1711926643306,-656.41,0.00058356,120]
[321169572,1711926643315,-500.0,0.00058356,120]
[321169574,1711926643324,-629.5,0.00058356,120]
[321169575,1711926643332,-500.0,0.00058356,120]
[321169577,1711926643341,-974.24,0.00058356,120]
[321169579,1711926643350,-500.0,0.00058356,120]
[321169581,1711926643359,-500.0,0.00058356,120]
[321169583,1711926643369,-1687.4,0.00058356,120]
[321169585,1711926643378,-648.95,0.00058356,120]
[321169587,1711926643386,-686.4,0.00058356,120]
[321169589,1711926643395,-1104.01,0.00058356,120]
[321169591,1711926643404,-1419.24,0.00058356,120]
[321169593,1711926643414,-739.87,0.00058356,120]
[321169595,1711926643423,-943.24,0.00058356,120]
[321169597,1711926643432,-500.0,0.00058356,21]
[321169599,1711926643441,-823.48,0.00058356,120]
[321169601,1711926643450,-528.34,0.00058356,120]
[321169603,1711926643459,-732.72,0.00058356,120]
[321169605,1711926643468,-1863.01,0.00058356,120]
[321169607,1711926643477,-500.0,0.00058356,120]
[321169609,1711926643486,-500.0,0.00058356,120]
[321169610,1711926643495,-500.0,0.00058356,120]
[321169611,1711926643504,-500.0,0.00058356,120]
[321169613,1711926643513,-992.98,0.00058356,120]
[321169615,1711926643523,-500.0,0.00058356,120]
[321169616,1711926643531,-150.0,0.00058379,120]
[321169618,1711926643540,-150.0,0.00058379,2]
[321169620,1711926643549,-1139.0,0.00058379,120]
[321169622,1711926643558,-1178.0,0.00058379,120]
[321169624,1711926643567,-5525.91477163,0.00058597,2]
[321169626,1711926643576,-500.0,0.0005863,120]
[321169627,1711926643585,-708.54,0.0005863,120]
[321169628,1711926643594,-608.72,0.0005863,120]
[321169629,1711926643603,-500.0,0.0005863,120]
[321169630,1711926643613,-276.06,0.0005863,120]
[321169631,1711926643622,-656.41,0.0005863,120]
[321169632,1711926643632,-500.0,0.0005863,120]
[321169633,1711926643641,-629.5,0.0005863,120]
[321169634,1711926643650,-500.0,0.0005863,120]
[321169635,1711926643659,-974.24,0.0005863,120]
[321169636,1711926643668,-500.0,0.0005863,120]
[321169637,1711926643679,-500.0,0.0005863,120]
[321169638,1711926643691,-1687.4,0.0005863,120]
[321169639,1711926643706,-648.95,0.0005863,120]
[321169640,1711926643715,-686.4,0.0005863,120]
[321169641,1711926643724,-1104.01,0.0005863,120]
[321169642,1711926643733,-1419.24,0.0005863,120]
[321169643,1711926643743,-739.87,0.0005863,120]
[321169644,1711926643752,-943.24,0.0005863,120]
[321169645,1711926643761,-359.81,0.0005863,21]
[321169646,1711926643771,-823.48,0.0005863,120]
[321169647,1711926643781,-528.34,0.0005863,120]
[321169648,1711926643790,-732.72,0.0005863,120]
[321169649,1711926643800,-1863.01,0.0005863,120]
[321169650,1711926643810,-500.0,0.0005863,120]
[321169651,1711926643821,-323.7,0.0005863,120]
[321169652,1711926643830,-500.0,0.0005863,120]
[321169653,1711926643840,-500.0,0.0005863,120]
[321169654,1711926643849,-992.98,0.0005863,120]
[321169655,1711926643859,-500.0,0.0005863,120]
[321169656,1711926643868,-14132.90484172,0.0005864,2]
[321169657,1711926643878,-172.5891312,0.00058676,2]
[321169658,1711926643888,-700.0,0.000589,21]
[321169659,1711926643897,-710.0,0.000589,25]
[321169660,1711926643907,-500.0,0.00058904,120]
[321169661,1711926643917,-708.54,0.00058904,120]
[321169662,1711926643926,-608.72,0.00058904,120]
[321169663,1711926643935,-618.87,0.00058904,120]
[321169664,1711926643944,-656.41,0.00058904,120]
[321169665,1711926643953,-500.0,0.00058904,120]
[321169666,1711926643964,-629.5,0.00058904,120]
[321169667,1711926643976,-401.25,0.00058904,120]
[321169668,1711926643987,-974.24,0.00058904,120]
[321169669,1711926643996,-443.41821149,0.00058904,120]
[321169670,1711926644006,-500.0,0.00058904,120]
[321169671,1711926644016,-1687.4,0.00058904,120]
[321169672,1711926644026,-648.95,0.00058904,120]
[321169673,1711926644035,-686.4,0.00058904,120]
[321169674,1711926644045,-1104.01,0.00058904,120]
[321169675,1711926644055,-1419.24,0.00058904,120]
[321169676,1711926644065,-739.87,0.00058904,120]
[321169677,1711926644074,-943.24,0.00058904,120]
[321169678,1711926644083,-823.48,0.00058904,120]
[321169679,1711926644092,-528.34,0.00058904,120]
[321169680,1711926644102,-732.72,0.00058904,120]
[321169681,1711926644111,-1863.01,0.00058904,120]
[321169682,1711926644121,-363.0,0.00058904,120]
[321169683,1711926644130,-532.43914047,0.00058904,120]
[321169684,1711926644141,-500.61268438,0.00058904,120]
[321169685,1711926644150,-992.98,0.00058904,120]
[321169686,1711926644160,-500.0,0.00058904,120]
[321169687,1711926644169,-495.71611963,0.00059,120]
[321169688,1711926644178,-500.0,0.00059178,120]
[321169689,1711926644187,-708.54,0.00059178,120]
[321169690,1711926644196,-608.72,0.00059178,120]
[321169691,1711926644205,-656.41,0.00059178,120]
[321169692,1711926644214,-500.0,0.00059178,120]
[321169693,1711926644223,-629.5,0.00059178,120]
[321169694,1711926644232,-974.24,0.00059178,120]
[321169695,1711926644242,-500.0,0.00059178,120]
[321169696,1711926644251,-1687.4,0.00059178,120]
[321169697,1711926644261,-648.95,0.00059178,120]
[321169698,1711926644271,-686.4,0.00059178,120]
[321169699,1711926644280,-1104.01,0.00059178,120]
[321169700,1711926644289,-1419.24,0.00059178,120]
[321169701,1711926644298,-739.87,0.00059178,120]
[321169702,1711926644308,-943.24,0.00059178,120]
[321169703,1711926644318,-823.48,0.00059178,120]
[321169704,1711926644327,-528.34,0.00059178,120]
[321169705,1711926644337,-732.72,0.00059178,120]
[321169706,1711926644346,-1863.01,0.00059178,120]
[321169707,1711926644356,-992.98,0.00059178,120]
[321169708,1711926644365,-500.0,0.00059178,120]
[321169709,1711926644374,-165.34940972,0.00059298,120]
[321169710,1711926644383,-6920.72862938,0.00059298,2]
[321169711,1711926644393,-156.774822,0.000593,13]
[321169712,1711926644402,-181.81,0.00059385,120]
[321169713,1711926644411,-500.0,0.00059452,120]
[321169714,1711926644421,-708.54,0.00059452,120]
[321169715,1711926644430,-608.72,0.00059452,120]
[321169716,1711926644439,-656.41,0.00059452,120]
[321169717,1711926644448,-500.0,0.00059452,120]
[321169718,1711926644457,-629.5,0.00059452,120]
[321169719,1711926644466,-974.24,0.00059452,120]
[321169720,1711926644476,-500.0,0.00059452,120]
[321169721,1711926644486,-1687.4,0.00059452,120]
[321169722,1711926644496,-648.95,0.00059452,120]
[321169723,1711926644505,-686.4,0.00059452,120]
[321169724,1711926644514,-1104.01,0.00059452,120]
[321169725,1711926644524,-1419.24,0.00059452,120]
[321169726,1711926644533,-739.87,0.00059452,120]
[321169727,1711926644543,-943.24,0.00059452,120]
[321169728,1711926644553,-823.48,0.00059452,120]
[321169729,1711926644562,-528.34,0.00059452,120]
[321169730,1711926644572,-732.72,0.00059452,120]
[321169731,1711926644581,-1863.01,0.00059452,120]
[321169732,1711926644590,-992.98,0.00059452,120]
[321169733,1711926644599,-286.48737229,0.00059452,120]
[321169734,1711926644609,-150.040108,0.00059498,118]
[321169735,1711926644619,-150.0,0.000595,13]
[321169736,1711926644628,-495.17,0.00059589,2]
[321169737,1711926644640,-500.0,0.00059598,2]
[321169738,1711926644649,-500.0,0.00059598,2]
[321169739,1711926644658,-500.0,0.00059598,2]
[321169740,1711926644667,-408.0155,0.00059598,2]
[321169741,1711926644677,-1000.0,0.00059598,2]
[321169742,1711926644687,-1000.0,0.00059598,2]
[321169743,1711926644697,-1000.0,0.00059598,2]
[321169744,1711926644706,-1000.0,0.00059598,2]
[321169745,1711926644715,-1000.0,0.00059598,2]
[321169746,1711926644725,-1000.0,0.00059598,2]
[321169747,1711926644734,-1000.0,0.00059598,2]
[321169748,1711926644744,-1000.0,0.00059598,2]
[321169749,1711926644754,-1000.0,0.00059598,2]
[321169750,1711926644763,-1000.0,0.00059598,2]
[321169751,1711926644773,-1000.0,0.00059598,2]
[321169752,1711926644782,-1000.0,0.00059598,2]
[321169753,1711926644792,-1000.0,0.00059598,2]
[321169754,1711926644801,-1000.0,0.00059598,2]
[321169755,1711926644810,-1000.0,0.00059598,2]
[321169756,1711926644820,-1000.0,0.00059598,2]
[321169757,1711926644829,-1000.0,0.00059598,2]
[321169758,1711926644839,-1000.0,0.00059598,2]
[321169759,1711926644848,-1000.0,0.00059598,2]
[321169760,1711926644857,-1000.0,0.00059598,2]
[321169761,1711926644866,-1000.0,0.00059598,2]
[321169762,1711926644875,-1000.0,0.00059598,2]
[321169763,1711926644884,-1000.0,0.00059598,2]
[321169764,1711926644894,-1000.0,0.00059598,2]
[321169765,1711926644903,-1000.0,0.00059598,2]
[321169766,1711926644912,-1000.0,0.00059598,2]
[321169767,1711926644921,-1000.0,0.00059598,2]
[321169768,1711926644930,-1000.0,0.00059598,2]
[321169769,1711926644939,-1000.0,0.00059598,2]
[321169770,1711926644948,-1000.0,0.00059598,2]
[321169771,1711926644958,-1000.0,0.00059598,2]
[321169772,1711926644967,-1000.0,0.00059598,2]
[321169773,1711926644981,-1000.0,0.00059598,2]
[321169774,1711926644990,-1000.0,0.00059598,2]
[321169775,1711926644999,-1000.0,0.00059598,2]
[321169776,1711926645008,-1000.0,0.00059598,2]
[321169777,1711926645018,-1000.0,0.00059598,2]
[321169778,1711926645027,-1000.0,0.00059598,2]
[321169779,1711926645037,-1000.0,0.00059598,2]
[321169780,1711926645046,-526.9447,0.00059598,2]
[321169781,1711926645056,-500.0,0.00059598,2]
[321169782,1711926645066,-500.0,0.00059598,2]
[321169783,1711926645075,-500.0,0.00059598,2]
[321169784,1711926645085,-521.7959,0.00059598,2]
[321169785,1711926645094,-23201.178449,0.000597,2]
[321169786,1711926645104,-500.0,0.00059726,120]
[321169787,1711926645113,-708.54,0.00059726,120]
[321169788,1711926645122,-608.72,0.00059726,120]
[321169789,1711926645132,-656.41,0.00059726,120]
[321169790,1711926645141,-500.0,0.00059726,120]
[321169791,1711926645151,-629.5,0.00059726,120]
[321169792,1711926645160,-974.24,0.00059726,120]
[321169793,1711926645170,-500.0,0.00059726,120]
[321169794,1711926645180,-1687.4,0.00059726,120]
[321169795,1711926645191,-648.95,0.00059726,120]
[321169796,1711926645203,-686.4,0.00059726,120]
[321169797,1711926645213,-1104.01,0.00059726,120]
[321169798,1711926645225,-1419.24,0.00059726,120]
[321169799,1711926645235,-739.87,0.00059726,120]
[321169800,1711926645245,-943.24,0.00059726,120]
[321169801,1711926645255,-823.48,0.00059726,120]
[321169802,1711926645265,-528.34,0.00059726,120]
[321169803,1711926645274,-732.72,0.00059726,120]
[321169804,1711926645285,-1863.01,0.00059726,120]
[321169805,1711926645294,-992.98,0.00059726,120]
[321169806,1711926645303,-473.0,0.000598,40]
[321169807,1711926645312,-150.0,0.000598,14]
[321169808,1711926645321,-1000.0,0.000598,21]
[321169809,1711926645331,-154.86,0.00059848,2]
[321169810,1711926645341,-2154255.52240888,0.00059898,12]
[321169811,1711926645352,-171487.5747235,0.000599,120]
[321169812,1711926645361,-1400.0,0.000599,21]
[321169813,1711926645370,-3145.6673309,0.00059929,2]
[321169814,1711926645380,-3487.470432,0.00059929,2]
[321169815,1711926645390,-27080.5512597,0.00059929,2]
[321169816,1711926645399,-3332.1469834,0.00059929,2]
[321169817,1711926645408,-221595.6946746,0.00059929,2]
[321169818,1711926645418,-150.5,0.0005997,15]
[321169819,1711926645427,-434.4777439,0.0005998,120]
[321169820,1711926645437,-150.5,0.0005998,15]
[321169821,1711926645447,-150.5,0.0005999,15]
[321169822,1711926645456,-256.11,0.0005999,15]
[321169823,1711926645465,-753.02623452,0.00059997,2]
[321169824,1711926645474,-349.07,0.00059999,120]
[321169825,1711926645484,-708.54,0.00059999,120]
[321169826,1711926645493,-608.72,0.00059999,120]
[321169827,1711926645502,-656.41,0.00059999,120]
[321169828,1711926645511,-500.0,0.00059999,120]
[321169829,1711926645520,-629.5,0.00059999,120]
[321169830,1711926645530,-974.24,0.00059999,120]
[321169831,1711926645540,-500.0,0.00059999,120]
[321169832,1711926645550,-1687.4,0.00059999,120]
[321169833,1711926645560,-648.95,0.00059999,120]
[321169834,1711926645569,-686.4,0.00059999,120]
[321169835,1711926645579,-1104.01,0.00059999,120]
[321169836,1711926645588,-1419.24,0.00059999,120]
[321169837,1711926645598,-739.87,0.00059999,120]
[321169838,1711926645608,-943.24,0.00059999,120]
[321169839,1711926645618,-823.48,0.00059999,120]
[321169840,1711926645627,-528.34,0.00059999,120]
[321169841,1711926645638,-732.72,0.00059999,120]
[321169842,1711926645648,-1863.01,0.00059999,120]
[321169843,1711926645658,-992.98,0.00059999,120]
[321169844,1711926645667,-55068.18799045,0.0006,36]
[321169845,1711926645676,-155.0,0.0006,60]
[321169846,1711926645686,-9894.08355956,0.0006,120]
[321169847,1711926645695,-518.00010414,0.0006,90]
[321169848,1711926645705,-1411.02140765,0.0006,7]
[321169849,1711926645715,-1495.10162571,0.0006,7]
[321169850,1711926645725,-156.45889321,0.0006,120]
[321169851,1711926645736,-10000.0,0.0006,4]
[321169852,1711926645745,-897.4007763,0.0006,120]
[321169853,1711926645755,-103935.52218313,0.0006,120]
[321169854,1711926645765,-42417.27189224,0.0006,120]
[321169855,1711926645774,-285501.25399246,0.0006,120]
[321169856,1711926645789,-6758.88645931,0.0006,120]
[321169857,1711926645899,-49576.61010103,0.0006,120]
[321169858,1711926645909,-2498.72880319,0.0006,120]
[321169859,1711926645923,-19626.09000819,0.0006,120]
[321169860,1711926646161,-4877.63741137,0.0006,120]
[321169861,1711926646395,-310.8781278,0.00055067,4]
[321169862,1711926646406,-368.41989986,0.00059177,4]
[321169863,1711926646416,-153.15220149,0.000598,81]
[321169864,1711926646426,-5892.21176084,0.0006,120]
[321169878,1711927705157,-1401.31047226,0.00032999,4]
[321169885,1711927831674,-483.40068454,0.00032999,2]
[321169886,1711927831684,-350.0,0.00033,3]
[321169887,1711927831693,-400.0,0.00035,3]
[321169888,1711927831703,-450.0,0.00037,3]
[321169889,1711927831712,-154.56,0.00037808,2]
[321169890,1711927831721,-157.95,0.00037808,2]
[321169891,1711927831731,-155.0,0.00042658,2]
[321169892,1711927831739,-154.56,0.00047726,2]
[321169893,1711927831749,-157.95,0.00048828,2]
[321169894,1711927831758,-450.0,0.00053,120]
[321169895,1711927831767,-601.7086548,0.00054,120]
[321169896,1711927831776,-499.99,0.00054794,2]
[321169897,1711927831786,-1248.70424314,0.00054916,4]
[321169898,1711927831795,-936.453,0.00054979,120]
[321169899,1711927831804,-450.0,0.00055,120]
[321169900,1711927831814,-1601.49768259,0.00055779,4]
[321169901,1711927831824,-297.1,0.0005578,2]
[321169902,1711927831833,-291.05456337,0.00056164,2]
[321169903,1711927831842,-450.0,0.00057,120]
[321169904,1711927831851,-150.17,0.00057385,120]
[321169905,1711927831860,-184.32,0.0005747,120]
[321169906,1711927831870,-256.33,0.00057485,120]
[321169907,1711927831880,-170.87,0.00057497,2]
[321169908,1711927831889,-154.56,0.00057644,2]
[321169909,1711927831899,-151.5,0.00057714,120]
[321169910,1711927831908,-9624.08,0.00057716,2]
[321169911,1711927831917,-135.62233656,0.00057729,30]
[321169912,1711927831929,-864.37766344,0.00057729,30]
[321169913,1711927831939,-500.0,0.00057732,120]
[321169914,1711927831948,-900.78,0.00057871,120]
[321169915,1711927831957,-297.1,0.00058044,2]
[321169916,1711927831966,-2043.0,0.00058425,117]
[321169917,1711927831976,-800.0,0.00058474,120]
[321169918,1711927831985,-259.923458,0.00058474,120]
[321169919,1711927831994,-450.0,0.00059,120]
[321169920,1711927832003,-151.040108,0.00059198,116]
[321169921,1711927832013,-815.68,0.00059229,120]
[321169922,1711927832022,-165.34940972,0.00059397,120]
[321169923,1711927832033,-839.39675934,0.00059397,2]
[321169924,1711927832064,-672.26775027,0.00059397,2]
[321169925,1711927832626,-482.51885774,0.00059397,2]
[321169984,1711927839849,-1178.0,0.00054979,120]
[321169985,1711927839859,-1178.0,0.00057979,120]
[321169986,1711927839868,-4926.54526203,0.00059397,2]
[321169987,1711927839878,-150.0,0.000594,13]
[321169988,1711927839887,-151.040108,0.00059498,117]
[321169989,1711927839897,-151.040108,0.00059798,119]
[321169990,1711927839906,-157.95,0.00059848,2]
[321169991,1711927839916,-1247.095385,0.0005988,30]
[321169992,1711927839925,-2695.67774357,0.0005989,2]
[321169993,1711927839934,-13943.5559,0.000599,2]
[321169994,1711927839943,-23692.0236,0.000599,2]
[321169995,1711927839953,-105.68199443,0.000599,14]
[321169996,1711927839965,-44.31800557,0.000599,14]
[321169997,1711927839975,-891.72266148,0.000599,30]
[321169998,1711927839987,-108.27733852,0.000599,30]
[321169999,1711927839997,-163.00073204,0.000599,14]
[321170000,1711927840006,-88.86379273,0.0005992,30]
[321170001,1711927840018,-911.13620727,0.0005992,30]
[321170002,1711927840027,-3.72052709,0.0005994,30]
[321170003,1711927840039,-563.20869837,0.0005994,30]
[321170004,1711927840050,-433.07077454,0.0005994,30]
[321170005,1711927840059,-537.62326502,0.0005994,30]
[321170006,1711927840070,-253.29212054,0.0005994,30]
[321170007,1711927840081,-377.98218144,0.0005994,30]
[321170008,1711927840091,-1000.0,0.0005996,30]
[321170009,1711927840100,-1000.0,0.0005996,30]
[321170010,1711927840109,-1582.01781856,0.0005998,120]
[321170016,1711927842613,-12702.85927283,0.0005998,120]
[321170017,1711927842623,-1000.0,0.0005998,30]
[321170018,1711927842632,-1000.0,0.0005998,30]
[321170019,1711927842642,-427.78,0.0005999,30]
[321170020,1711927842651,-500.0,0.00059999,120]
[321170021,1711927842660,-500.0,0.00059999,120]
[321170022,1711927842669,-500.0,0.00059999,120]
[321170023,1711927842679,-1470.03,0.00059999,120]
[321170024,1711927842689,-500.0,0.00059999,120]
[321170025,1711927842698,-500.0,0.00059999,120]
[321170026,1711927842708,-500.0,0.00059999,120]
[321170027,1711927842718,-500.0,0.00059999,120]
[321170028,1711927842727,-500.0,0.00059999,120]
[321170029,1711927842737,-500.0,0.00059999,120]
[321170030,1711927842747,-500.0,0.00059999,120]
[321170031,1711927842756,-500.0,0.00059999,120]
[321170032,1711927842766,-500.0,0.00059999,120]
[321170033,1711927842776,-500.0,0.00059999,120]
[321170034,1711927842785,-2201.73,0.00059999,120]
[321170035,1711927842794,-500.0,0.00059999,120]
[321170036,1711927842803,-500.0,0.00059999,120]
[321170037,1711927842813,-500.0,0.00059999,120]
[321170038,1711927842823,-500.0,0.00059999,120]
[321170039,1711927842832,-500.0,0.00059999,120]
[321170040,1711927842841,-500.0,0.00059999,120]
[321170041,1711927842851,-500.0,0.00059999,120]
[321170042,1711927842861,-500.0,0.00059999,120]
[321170043,1711927842870,-500.0,0.00059999,120]
[321170044,1711927842879,-19301.73009475,0.0006,120]
[321170045,1711927842891,-1535.39342529,0.0006,120]
[321170057,1711927846507,-6750.77255877,0.0006,120]
[321170088,1711929031910,-193.21072537,0.00032899,2]
[321170089,1711929031920,-1401.31047226,0.00032899,4]
[321170090,1711929031930,-151.61319479,0.000329,2]
[321170091,1711929031939,-350.0,0.00033,3]
[321170092,1711929031949,-400.0,0.00035,3]
[321170093,1711929031958,-156.25,0.00037808,2]
[321170094,1711929031968,-156.39,0.00037808,2]
[321170095,1711929031977,-156.39,0.00047726,2]
[321170096,1711929031987,-2034.83560758,0.00055158,12]
[321170097,1711929031998,-7140.0,0.00055158,12]
[321170098,1711929032010,-268.33429441,0.00055158,12]
[321170099,1711929032021,-2124.01192801,0.00055158,12]
[321170100,1711929032031,-401.0,0.00055435,120]
[321170101,1711929032040,-165.627,0.00055435,120]
[321170102,1711929032049,-150.0,0.00055435,120]
[321170103,1711929032058,-158.0,0.00055435,2]
[321170104,1711929032068,-1000.0,0.00056,120]
[321170105,1711929032077,-204.9590717,0.000565,120]
[321170106,1711929032086,-324.29,0.00056604,2]
[321170107,1711929032095,-213.60200029,0.00057,120]
[321170273,1711929039832,-770.15779926,0.00057,120]
[321170274,1711929039995,-16.24020045,0.00057,120]
[321170275,1711929040005,-1000.0,0.00057,120]
[321170276,1711929040014,-101.9532598,0.000575,120]
[321170277,1711929040026,-898.0467402,0.000575,120]